Cogmind - Beta 10.1 @@@ ROGUE MODE // 2020.10.13 @ 20:56:20 // Winter2019/RPGLIKE Player: Hermelin Result: Destroyed by D-53 Grenadier with Mini Grenade Launcher Performance ------------- Evolutions (0) 0 Regions Visited (2) 400 Robots Destroyed (23) 115 Value Destroyed (603) 603 Prototype IDs (3) 60 Alien Tech Used (0) 0 Bonus (8) 8 TOTAL SCORE: 1186 Bonus ------- High Alert Combat Kills 8 Cogmind --------- Core Integrity 0/600 Matter 300/300 Energy 202/250 System Corruption 0% Temperature Cool (108) Movement Treading (160) Location -10/Mines Parts ------- > --- POWER (1) -------- Ion Engine > --- PROPULSION (2) --- Light Treads Light Treads > --- UTILITY (3) ------ Improved Terrain Scanner Medium Armor Plating Medium Armor Plating > --- WEAPON (2) ------- EM Pulse Gun > --- INVENTORY (3) ---- Protomatter-20 Medium Armor Plating Mini Grenade Launcher Peak State ------------ > --- POWER ------------ Ion Engine > --- PROPULSION ------- Light Treads Light Treads > --- UTILITY ---------- Improved Terrain Scanner Medium Armor Plating Medium Armor Plating > --- WEAPON ----------- EM Pulse Gun EM Pulse Gun > --- INVENTORY -------- Mini Grenade Launcher [Rating: 11] Favorites ----------- Power Ion Engine Engine Ion Engine Propulsion Light Treads Treads Light Treads Utility Medium Armor Plating Device Improved Terrain Scanner Protection Medium Armor Plating Weapon EM Pulse Gun Energy Gun EM Pulse Gun Ballistic Gun Light Assault Rifle Build | -11 -10 -10 ------- Run | Scr Mat Min Slots Evolved 4 | 3 1 . Power . | . . . Propulsion 1 | 1 . . Utility 2 | 1 1 . Weapon 1 | 1 . . Parts Attached 9 | 6 3 . Power 1 | 1 . . Engine 1 | 1 . . Core . | . . . Reactor . | . . . Propulsion 2 | 2 . . Treads 2 | 2 . . Leg . | . . . Wheel . | . . . Hover . | . . . Flight . | . . . Utility 3 | 1 2 . Device 1 | 1 . . Storage . | . . . Processor . | . . . Hackware . | . . . Protection 2 | . 2 . Artifact . | . . . Weapon 3 | 2 1 . Energy Gun 2 | 1 1 . Energy Cannon . | . . . Ballistic Gun 1 | 1 . . Ballistic Cannon . | . . . Launcher . | . . . Special Weapon . | . . . Impact Weapon . | . . . Slashing Weapon . | . . . Piercing Weapon . | . . . Special Melee Weapon . | . . . Unidentified Prototypes . | . . . Parts Lost 1 | . . 1 Power . | . . . Propulsion . | . . . Utility . | . . . Weapon 1 | . . 1 Highest Loss Streak 1 | . . 1 Average Slot Usage (%) 99 | . 99 100 Engine 13 | . 13 12 Treads 26 | . 26 25 Device 13 | . 13 12 Protection 19 | . 18 25 Energy Gun 23 | . 23 25 Ballistic Gun 2 | . 2 . Naked Turns . | . . . Heaviest Build 24 | 9 24 24 Greatest Support 45 | 45 45 45 Greatest Overweight (x) . | . . . Average Overweight (x) . | . . . Largest Inventory Capacity 3 | 2 3 3 Average Capacity 2 | 1 2 3 Most Carried 3 | 1 3 3 Average Carried 1 | . 1 3 Final Capacity 3 | 2 3 3 Final Carried 3 | 1 3 3 Class Distribution -------------------- 100% | Mutant Dominant Class ---------------- Mutant | -10/Materials Mutant | -10/Mines Resources | -11 -10 -10 ----------- Run | Scr Mat Min Matter Collected 313 | 266 47 . Remotely . | . . . Salvage Created 873 | 131 742 . Parts 45 | 5 40 . Haulers Intercepted 2 | . 2 . Recyclers Shooed . | . . . Parts Field Recycled . | . . . Retrieved Matter . | . . . Parts Self-Destructed . | . . . Prevented . | . . . Kills | -11 -10 -10 ------- Run | Scr Mat Min Combat Hostiles Destroyed 14 | . 14 . Guns 11 | . 11 . AOE 3 | . 3 . Classes Destroyed 6 | 2 4 . Tunneler 2 | 2 . . Hauler 2 | . 2 . Recycler 1 | 1 . . Operator 1 | . 1 . Watcher 3 | . 3 . Grunt 14 | . 14 . Best Kill Streak 3 | 2 3 . Combat Bots Only 3 | . 3 . Max Kills in Single Turn 1 | 1 1 . Gunslinging . | . . . Exploded 1 | . 1 . Melee . | . . . Uniques/NPCs Destroyed . | . . . Combat | -11 -10 -10 -------- Run | Scr Mat Min Damage Taken 1186 | . 293 893 Core 783 | . 173 610 Absorbed by Shields . | . . . Redirected to Core 631 | . 145 486 Core Remaining (%) 100 | 100 . . Volleys Fired 55 | 6 43 6 Largest 2 | 2 2 2 Hottest 80 | 60 80 80 Shots Fired 110 | 12 86 12 Gun 110 | 12 86 12 Cannon . | . . . Launcher . | . . . Special . | . . . Kinetic 23 | 6 17 . Thermal . | . . . Explosive . | . . . Electromagnetic 87 | 6 69 12 Robot Hit Streak 16 | 4 16 5 Robot Miss Streak 3 | 2 3 3 Penetration Max . | . . . Secondary Targets 1 | . 1 . Max Gunslinging Chain 1 | . 1 . Shots Hit Robots 70 | 7 57 6 Core Hits 37 | 4 31 2 Critical Hits 1 | 1 . . Critical Kills . | . . . Critical Parts Destroyed 1 | 1 . . Melee Attacks . | . . . Impact . | . . . Slashing . | . . . Piercing . | . . . Sneak Attacks . | . . . Combat Hostiles . | . . . Follow-up Attacks . | . . . Damage Inflicted 1155 | 99 979 77 Guns 923 | 99 747 77 Cannons . | . . . Explosions 232 | . 232 . Melee . | . . . Ramming . | . . . Kinetic 107 | 20 87 . Thermal 232 | . 232 . Explosive . | . . . Electromagnetic 816 | 79 660 77 Impact . | . . . Slashing . | . . . Piercing . | . . . Highest Corruption . | . . . Average Corruption . | . . . Corruption Purged . | . . . Overload Shots . | . . . Overflow Damage 6 | . 6 . Projectiles . | . . . Explosions 6 | . 6 . Melee . | . . . Knockbacks . | . . . Impact . | . . . Kinetic . | . . . Secondary . | . . . Self-Inflicted Damage 61 | . 61 . Shots 2 | . 2 . Rammed . | . . . Targets Rammed . | . . . Kicked . | . . . Crushed . | . . . Highest Temperature 126 | 20 126 108 Average Temperature 42 | 14 43 57 Received Heat Transfer 120 | . 120 . Siege Activations . | . . . Robots Corrupted . | . . . Combat Hostiles . | . . . Parts Fried 6 | 1 5 . Impact Corruptions . | . . . Robots Melted . | . . . Combat Hostiles . | . . . Parts Melted . | . . . Heat Transferred 350 | . 350 . Parts Sabotaged . | . . . Parts Stolen . | . . . Parts Stripped . | . . . Power Chain Reactions 5 | . 5 . Missiles Intercepted . | . . . Alert | -11 -10 -10 ------- Run | Scr Mat Min Peak Influence 430 | 15 430 109 Initial 109 | . 9 109 Average 216 | 6 236 109 Maximum Alert Level 2 | . 2 . Low Security (%) 48 | 100 42 100 Level 1 44 | . 49 . Level 2 7 | . 7 . Level 3 . | . . . Level 4 . | . . . Level 5 . | . . . High Security . | . . . Max Security . | . . . Squads Dispatched 4 | . 4 . Investigation 2 | . 2 . Extermination . | . . . Reinforcement 2 | . 2 . Assault . | . . . Garrison . | . . . Intercept . | . . . Construction Impeded . | . . . Haulers Reinforced . | . . . Stealth | -11 -10 -10 --------- Run | Scr Mat Min Distress Signals 2 | . 2 . Communications Jammed . | . . . Distress Signals . | . . . Times Spotted 34 | . 27 7 Peak Tracking Total 6 | . 4 6 Tactical Retreats . | . . . Traps | -11 -10 -10 ------- Run | Scr Mat Min Traps Triggered 1 | . 1 . Indirectly . | . . . Trap Hack Attempts . | . . . Triggered . | . . . Disarmed . | . . . Reprogrammed . | . . . Reused . | . . . Traps Extracted . | . . . Installed . | . . . Triggered . | . . . Machines | -11 -10 -10 ---------- Run | Scr Mat Min Machines Disabled . | . . . Max in Single Turn . | . . . Machines Sabotaged . | . . . Garrisons Compromised . | . . . Overloaded Fab Kills . | . . . Fab Network Shutdowns . | . . . Hacking | -11 -10 -10 --------- Run | Scr Mat Min Machines Accessed 8 | . 8 . Terminals 6 | . 6 . Fabricators . | . . . Repair Stations . | . . . Recycling Units 2 | . 2 . Scanalyzers . | . . . Garrison Access . | . . . Total Hacks 33 | . 33 . Successful 22 | . 22 . Failed 10 | . 10 . Catastrophic . | . . . Database Lockouts 1 | . 1 . Manual 17 | . 17 . Terminals 29 | . 29 . Fabricators . | . . . Repair Stations . | . . . Recycling Units 4 | . 4 . Scanalyzers . | . . . Garrison Access . | . . . Terminal Hacks 10 | . 10 . Robot Analysis 1 | . 1 . Prototype ID Bank 2 | . 2 . Branch Access Points 1 | . 1 . Terminal Index 1 | . 1 . Locate Traps 1 | . 1 . Reprogram Traps 1 | . 1 . Registered Components 1 | . 1 . Zone Layout 2 | . 2 . Fabricator Hacks . | . . . Repair Station Hacks . | . . . Recycling Unit Hacks 2 | . 2 . Report Inventory 2 | . 2 . Scanalyzer . | . . . Garrison Access Hacks . | . . . Unauthorized Hacks 10 | . 10 . Terminals 8 | . 8 . Track 4 | . 4 . Botnet 2 | . 2 . Disrupt 1 | . 1 . Operators 1 | . 1 . Fabricators . | . . . Repair Stations . | . . . Recycling Units 2 | . 2 . Tunnel 2 | . 2 . Scanalyzers . | . . . Garrison Access . | . . . Data Cores Recovered . | . . . Used . | . . . Hacking Detections 6 | . 6 . Full Trace Events . | . . . Feedback Events . | . . . Feedback Blocked . | . . . Robot Schematics Acquired . | . . . Robots Built . | . . . Matter . | . . . Time . | . . . Total Robot Build Rating . | . . . Part Schematics Acquired . | . . . Parts Built . | . . . Matter . | . . . Time . | . . . Total Part Build Rating . | . . . Parts Repaired . | . . . Time . | . . . Parts Recycled . | . . . Recycled Matter . | . . . Retrieved Matter . | . . . Retrieved Components . | . . . Parts Scanalyzed . | . . . Part Schematics Acquired . | . . . Parts Damaged . | . . . Bothacking | -11 -10 -10 ------------ Run | Scr Mat Min Used RIF Installer . | . . . Robots Hacked . | . . . Non-combat . | . . . Combat . | . . . Robot Hacks Applied . | . . . Relay Couplers Released . | . . . Robots Rewired . | . . . Allies Hacked . | . . . Hacks Repelled . | . . . Allies | -11 -10 -10 -------- Run | Scr Mat Min Total Allies . | . . . Largest Group . | . . . Highest-Rated Group . | . . . Highest-Rated Ally . | . . . Total Orders . | . . . Ally Attacks . | . . . Total Damage . | . . . Kills . | . . . Allies Corrupted . | . . . Allies Melted . | . . . Intel | -11 -10 -10 ------- Run | Scr Mat Min Robot Analysis Total 1 | . 1 . Derelict Logs Recovered . | . . . Drone Launches . | . . . Drone Recoveries . | . . . Exploration | -11 -10 -10 ------------- Run | Scr Mat Min Turns Passed 1478 | 109 1334 35 Spaces Moved 772 | 58 709 5 Core 9 | 9 . . Treads 763 | 49 709 5 Legs . | . . . Wheels . | . . . Hover . | . . . Flight . | . . . Fastest Speed 50 | 50 160 160 Average Speed 158 | 142 160 160 Slowest Speed 160 | 160 160 160 Overloaded Moves . | . . . Propulsion Burnouts . | . . . Robots Hopped . | . . . Cave-ins Triggered . | . . . Exploration Rate (%) 36 | 4 96 8 Regions Visited 2 Branch Regions 1 Pre-discovered Areas 2 | . 2 . Known Exits Taken 1 | . 1 . Unknown Exits Taken 1 | 1 . . Scrap Searched 1 | . . 1 Spaces Dug . | . . . Terrain Destroyed 25 | . 25 . Melee . | . . . Projectile . | . . . AOE 25 | . 25 . Terrain Rammed . | . . . Walls Destroyed . | . . . Machines Disabled . | . . . Actions | -11 -10 -10 --------- Run | Scr Mat Min Total 916 | 70 826 20 Wait 59 | . 50 9 Move 770 | 57 708 5 Hop . | . . . Pick Up 5 | 1 4 . Fast Attach 8 | 6 2 . Attach 1 | . 1 . Detach . | . . . Swap . | . . . Drop 2 | . 2 . Fire 55 | 6 43 6 Melee . | . . . Ram . | . . . Kick . | . . . Crush . | . . . Escape Stasis . | . . . Rewire . | . . . Trap . | . . . Miscellaneous 16 | . 16 . Route ------- -11/Scrapyard -10/Materials (discovered 4 exits: [*Mat x3] / *Min) -10/Mines (discovered 1 exit: [*Mat]) History --------- Turn | Location | Event 3 | -11/Scrapyard | Discovered new exit (range 16) 6 | -11/Scrapyard | Upgraded with Propulsion slot (x1) 6 | -11/Scrapyard | Upgraded with Utility slot (x1) 6 | -11/Scrapyard | Upgraded with Weapon slot (x1) 110 | -11/Scrapyard | Entered Materials 318 | -10/Materials | Build established: Mutant 486 | -10/Materials | Discovered new exit (range 15) 508 | -10/Materials | Identified exit to Mines 508 | -10/Materials | Central database locked down 804 | -10/Materials | Reached level 2 818 | -10/Materials | Upgraded with Utility slot (x1) 906 | -10/Materials | Discovered new exit (range 16) 1174 | -10/Materials | Discovered new exit (range 11) 1444 | -10/Materials | Entered Mines 1445 | -10/Mines | Assembled infested the area 1459 | -10/Mines | Discovered new exit (range 10) 1467 | -10/Mines | Met a Derelict bent on vengeance 1470 | -10/Mines | Core integrity fell below 50% 1476 | -10/Mines | Core integrity fell below 20% 1479 | -10/Mines | Destroyed by D-53 Grenadier with Mini Grenade Launcher Last Messages --------------- 01465_ R-06 Scavenger collects Lgt. Ion Engine. 01466_ The unstable cave ceiling collapses. 01467_ U-05 Engineer lays Concrete. 01468_ R-06 Scavenger collects Lgt. Ion Engine. 01469_ U-05 Engineer lays Concrete. 01470_ The unstable cave ceiling collapses. 01470_ U-05 Engineer lays Concrete. 01471_ R-06 Scavenger collects Wheel. 01471_ U-05 Engineer lays Concrete. 01472_ The unstable cave ceiling collapses. 01472_ K-01 Serf collects debris. 01472_ U-05 Engineer lays Concrete. 01473_ The unstable cave ceiling collapses. 01473_ Destroyed Shock Absorption System. 01473_ U-05 Engineer lays Concrete. 01474_ R-06 Scavenger collects Wheel. 01475_ U-05 Engineer builds a Wall. 01476_ K-01 Serf collects debris. 01479_ The unstable cave ceiling collapses. 01479_ EM Pulse Gun destroyed. Map ----- +----------------------------------------------------+ | | | | | | | | | | | | | | | | | | | | | | | | | ???????????????###???#??#???#????#???? | | ????????????#?????#?#???##??###??????? | | ?????????????????##########??????????? | | ????????????#?????# #???#?#?#??? | | ????????????##????# """ #####?##???# | | ?????????????????## """ ?????#?#? | | ????????????#??#??# """ #?##???##?#? | | ???????????##?????# #### ?#?##?# | | ?????????????####?# ###? ??????? | | ??????????? ??? ?### k # ##?#####?? | | ????????????"??"??#?# # #?????? | | ???????????"????? #?# # ###??## | | ???????????????"? ??# #?#??#? | | ????????? ? ??? ????# @ #???#? | | ????????#???????? ??# k ##???# | | ????????? "?????" T## ##?#? | | ????????? ??? """??### #?## | | ????????? ??????? ???## d% #??? | | ??????????? ??##??#?#### #??? | | ??????????? #??##?#?#?? # d # < ##?#? | | ????????????#?#??????? #u ###??? | | ??????????? ###???#??#? %< ####????? | | ?????????????#??##??#? ##?##???? | | ??????????????????#???#% r ???#?#?? | | ??????????????#??? ??? % ?#???#?? | | ?????????????????? ??? ! ##???#??? | | ????????????????#? ???### ###??##???? | | ????????????????????????? ###??#?????? | | ?????????????????????? #? ???#???????? | | ????????????????????????? ???????????? | | ?????????????????????????????????????? | | ?????????????????????????????????????? | | ?????????????????????????????????????? | | ?????????????????????????????????????? | | ?????????????????????????????????????? | | ?????????????????????????????????????? | | ?????????????????????????????????????? | | ?????????????????????????????????????? | +----------------------------------------------------+ Best States ------------- Heat Dissipation 31 Energy Generation 10 Energy Capacity 250 Matter Stores 300 Matter Capacity 300 Sight Range 17 Terrain Scan Range 16 Terrain Scan Density 110 Armor Coverage 450 Evasion (%) 40 Recoil Reduction 2 Offensive Hacking 5 Defensive Hacking 5 Item Schematics ----------------- None Robot Schematics ------------------ None Fabricated ------------ Nothing Alien Tech Used ----------------- None Achievements -------------- None Challenges ------------ None RPGLIKE | -11 -10 -10 --------- Run | Scr Mat Min Levels Raised 1 | . 1 . XP Earned 5729 | 3000 2229 500 XP Spent 4500 | 2900 1600 . Upgrades 13 | 10 3 . Propulsion Slot 1 | 1 . . Utility Slot 2 | 1 1 . Weapon Slot 1 | 1 . . Heat Dissipation 1 | . 1 . Mass Support 1 | 1 . . Inventory Capacity 3 | 2 1 . Sight Range 1 | 1 . . Terrain Scan Density 1 | 1 . . Hack Attack % 1 | 1 . . Hack Defense % 1 | 1 . . Protomatter Created 207 | . 207 . Integrity Restored 295 | . 295 . Core 173 | . 173 . Parts 122 | . 122 . Protomatter Decayed 71 | . 71 . Game ------ Seed SiegeShadingWand Manual? 0 Play Time 00:11:21 Cumulative 344.3 hours Start 2020.10.13 @ 20:45:37 End 2020.10.13 @ 20:56:20 Sessions 1 Manual Loads 0 Difficulty Rogue Special Mode Winter2019/RPGLIKE Game No. 137 Rogue 137 Adventurer 0 Explorer 0 Win Type - Total 4 Types 3/0/0/1/0/0/0/0/0 Lore% 87 Gallery% 92 Achievement% 73 Wizard Run 0 Options --------- ASCII 0 Keyboard 0 Movement Numpad Keybinds 0 Fullscreen 1 Font 18/SmallcapsGlow Map View 76x50 Tactical HUD 1 Map Filters NONE Filters NONE Steam 1 RUN: 62692e64-3402-4e86-82de-49f5934e55d9